[Event "Late-Titled-Tuesday-Blitz-April-16-2024"]
[Site "Chess.com"]
[Date "2024.04.16"]
[Round "2"]
[White "IMRosen"]
[Black "N_I_Chess"]
[Result "1-0"]
[WhiteElo "2727"]
[BlackElo "2382"]
[TimeControl "180+1"]
[EndTime "14:18:22 PDT"]
[Termination "IMRosen won by checkmate"]

1. d4 {[%clk 0:03:00.9]} 1... Nf6 {[%clk 0:02:53.8]} 2. Bf4 {[%clk 0:03:01.2]}
2... d5 {[%clk 0:02:49.6]} 3. e3 {[%clk 0:03:00.9]} 3... Bf5 {[%clk 0:02:46]} 4.
Nd2 {[%clk 0:02:56.5]} 4... e6 {[%clk 0:02:39]} 5. Ngf3 {[%clk 0:02:56.6]} 5...
Bd6 {[%clk 0:02:33]} 6. Bg3 {[%clk 0:02:52.8]} 6... O-O {[%clk 0:02:29.6]} 7.
Bd3 {[%clk 0:02:52.7]} 7... Bg6 {[%clk 0:02:05.8]} 8. Bxg6 {[%clk 0:02:52.4]}
8... hxg6 {[%clk 0:02:06.7]} 9. Ng5 {[%clk 0:02:41.5]} 9... c5 {[%clk
0:02:00.2]} 10. c3 {[%clk 0:02:41.5]} 10... Nc6 {[%clk 0:01:59.9]} 11. Bxd6
{[%clk 0:02:15.8]} 11... Qxd6 {[%clk 0:01:59.2]} 12. f4 {[%clk 0:02:16.3]} 12...
b5 {[%clk 0:01:50.8]} 13. O-O {[%clk 0:02:11]} 13... b4 {[%clk 0:01:44.7]} 14.
Rc1 {[%clk 0:02:06.3]} 14... bxc3 {[%clk 0:01:42.4]} 15. bxc3 {[%clk 0:02:05.4]}
15... Rab8 {[%clk 0:01:37.2]} 16. Rc2 {[%clk 0:02:02.8]} 16... Rb7 {[%clk
0:01:27.9]} 17. Qf3 {[%clk 0:01:59.4]} 17... Rfb8 {[%clk 0:01:18.7]} 18. Rfc1
{[%clk 0:01:59.6]} 18... Rb2 {[%clk 0:01:13]} 19. Nb3 {[%clk 0:01:54.1]} 19...
Rxc2 {[%clk 0:01:11.8]} 20. Rxc2 {[%clk 0:01:54.2]} 20... c4 {[%clk 0:01:08.3]}
21. Nc5 {[%clk 0:01:54.2]} 21... Rb1+ {[%clk 0:01:08.7]} 22. Kf2 {[%clk
0:01:52.1]} 22... Ne7 {[%clk 0:01:01.1]} 23. g4 {[%clk 0:01:43.3]} 23... Qb6
{[%clk 0:00:51]} 24. Kg2 {[%clk 0:01:40.5]} 24... Ra1 {[%clk 0:00:42.6]} 25. Kh3
{[%clk 0:01:09.7]} 25... Qb1 {[%clk 0:00:39.8]} 26. Qe2 {[%clk 0:01:00.2]} 26...
Nh7 {[%clk 0:00:26.3]} 27. Nf3 {[%clk 0:00:53.4]} 27... Nc6 {[%clk 0:00:18.7]}
28. Rb2 {[%clk 0:00:50.5]} 28... Qf1+ {[%clk 0:00:18]} 29. Qxf1 {[%clk
0:00:50.4]} 29... Rxf1 {[%clk 0:00:18.9]} 30. Kg2 {[%clk 0:00:47.9]} 30... Rc1
{[%clk 0:00:17.7]} 31. Rb7 {[%clk 0:00:15.2]} 31... Nf6 {[%clk 0:00:17.5]} 32.
Rc7 {[%clk 0:00:11.8]} 32... Nxg4 {[%clk 0:00:07.4]} 33. Rxc6 {[%clk 0:00:07.3]}
33... Nxe3+ {[%clk 0:00:07.9]} 34. Kf2 {[%clk 0:00:07.3]} 34... Nd1+ {[%clk
0:00:08.3]} 35. Kg3 {[%clk 0:00:06.5]} 35... Rxc3 {[%clk 0:00:07.5]} 36. Nd7
{[%clk 0:00:04]} 36... Ne3 {[%clk 0:00:04.6]} 37. Ng5 {[%clk 0:00:03.1]} 37...
Nf5+ {[%clk 0:00:04.5]} 38. Kf2 {[%clk 0:00:03.4]} 38... Ne7 {[%clk 0:00:03.9]}
39. Rc7 {[%clk 0:00:03.3]} 39... f6 {[%clk 0:00:01.9]} 40. Nxe6 {[%clk
0:00:03.6]} 40... Rc2+ {[%clk 0:00:02.6]} 41. Ke1 {[%clk 0:00:03.7]} 41... Rxa2
{[%clk 0:00:02.9]} 42. Ndc5 {[%clk 0:00:04.2]} 42... Nf5 {[%clk 0:00:03.2]} 43.
Rc8+ {[%clk 0:00:04]} 43... Kh7 {[%clk 0:00:03.8]} 44. Nf8+ {[%clk 0:00:02.7]}
44... Kh6 {[%clk 0:00:03.6]} 45. Nfe6 {[%clk 0:00:03.2]} 45... Ra1+ {[%clk
0:00:04]} 46. Kd2 {[%clk 0:00:02.9]} 46... Ra2+ {[%clk 0:00:04.9]} 47. Kc3
{[%clk 0:00:03.2]} 47... Rxh2 {[%clk 0:00:05.8]} 48. Rh8# {[%clk 0:00:03]} 1-0

[Event "Late-Titled-Tuesday-Blitz-April-16-2024"]
[Site "Chess.com"]
[Date "2024.04.16"]
[Round "2"]
[White "Meri-Arabidze"]
[Black "egnfanclub"]
[Result "1-0"]
[WhiteElo "2673"]
[BlackElo "2370"]
[TimeControl "180+1"]
[EndTime "14:18:28 PDT"]
[Termination "Meri-Arabidze won by resignation"]

1. d4 {[%clk 0:03:00.9]} 1... d5 {[%clk 0:02:57.8]} 2. c4 {[%clk 0:03:01.4]}
2... c6 {[%clk 0:02:58.1]} 3. Nf3 {[%clk 0:02:59.9]} 3... Nf6 {[%clk 0:02:58.3]}
4. Nbd2 {[%clk 0:02:59.5]} 4... e6 {[%clk 0:02:57.3]} 5. e3 {[%clk 0:03:00]}
5... Nbd7 {[%clk 0:02:57.5]} 6. Bd3 {[%clk 0:03:00]} 6... Bd6 {[%clk 0:02:57.7]}
7. O-O {[%clk 0:02:59.9]} 7... O-O {[%clk 0:02:56.1]} 8. e4 {[%clk 0:03:00.3]}
8... e5 {[%clk 0:02:55.2]} 9. cxd5 {[%clk 0:02:56.3]} 9... cxd5 {[%clk
0:02:55.5]} 10. Re1 {[%clk 0:02:56.8]} 10... dxe4 {[%clk 0:02:50.4]} 11. Nxe4
{[%clk 0:02:56.8]} 11... Nxe4 {[%clk 0:02:50]} 12. Bxe4 {[%clk 0:02:57.3]} 12...
exd4 {[%clk 0:02:30.3]} 13. Qxd4 {[%clk 0:02:45.9]} 13... Qf6 {[%clk 0:02:29.8]}
14. Bg5 {[%clk 0:02:32.1]} 14... Qxd4 {[%clk 0:02:27.8]} 15. Nxd4 {[%clk
0:02:33]} 15... Nc5 {[%clk 0:02:24.4]} 16. Bf3 {[%clk 0:02:31.5]} 16... Ne6
{[%clk 0:02:17.7]} 17. Nxe6 {[%clk 0:02:30.5]} 17... Bxe6 {[%clk 0:02:18.6]} 18.
b3 {[%clk 0:02:18.3]} 18... Rab8 {[%clk 0:02:07.3]} 19. Rac1 {[%clk 0:02:18.1]}
19... h6 {[%clk 0:01:58]} 20. Be3 {[%clk 0:02:17.9]} 20... b6 {[%clk 0:01:56.8]}
21. Rc6 {[%clk 0:02:15.7]} 21... Bb4 {[%clk 0:01:51]} 22. Rec1 {[%clk
0:02:15.1]} 22... Rbc8 {[%clk 0:01:48.9]} 23. Rc7 {[%clk 0:02:11.6]} 23... Ba3
{[%clk 0:01:30.3]} 24. R1c6 {[%clk 0:02:05.4]} 24... Rxc7 {[%clk 0:00:53.4]} 25.
Rxc7 {[%clk 0:02:06.3]} 25... Rc8 {[%clk 0:00:52.4]} 26. Rxa7 {[%clk 0:02:03.2]}
26... Bc5 {[%clk 0:00:46.8]} 27. Bxc5 {[%clk 0:01:59.9]} 27... Rxc5 {[%clk
0:00:44.3]} 28. h3 {[%clk 0:01:55.2]} 28... Rc1+ {[%clk 0:00:42]} 29. Kh2 {[%clk
0:01:55.2]} 29... Rc2 {[%clk 0:00:42.6]} 30. Kg3 {[%clk 0:01:55.4]} 30... g5
{[%clk 0:00:41.6]} 31. Be4 {[%clk 0:01:45.6]} 31... Rb2 {[%clk 0:00:40.6]} 32.
f4 {[%clk 0:01:34.5]} 32... gxf4+ {[%clk 0:00:37.2]} 33. Kxf4 {[%clk 0:01:34.5]}
33... Kg7 {[%clk 0:00:35.7]} 34. g4 {[%clk 0:01:28.6]} 34... Kf6 {[%clk
0:00:35.5]} 35. Ra6 {[%clk 0:01:23.2]} 35... Rf2+ {[%clk 0:00:31.6]} 36. Kg3
{[%clk 0:01:22.2]} 36... Rb2 {[%clk 0:00:32]} 37. Bf3 {[%clk 0:01:17.4]} 37...
Ke5 {[%clk 0:00:29.3]} 38. Ra4 {[%clk 0:01:03.8]} 38... b5 {[%clk 0:00:23.5]}
39. Ra5 {[%clk 0:00:59.1]} 39... Kd4 {[%clk 0:00:23.6]} 40. Rxb5 {[%clk
0:00:56.2]} 40... Rxa2 {[%clk 0:00:23.6]} 41. b4 {[%clk 0:00:45.1]} 41... Ra3
{[%clk 0:00:23.2]} 42. Kf4 {[%clk 0:00:44.1]} 42... Rb3 {[%clk 0:00:23.2]} 43.
Rh5 {[%clk 0:00:35.8]} 43... Rxb4 {[%clk 0:00:20.6]} 44. Rxh6 {[%clk 0:00:36.3]}
44... Kd3+ {[%clk 0:00:19.3]} 45. Kg3 {[%clk 0:00:35.4]} 45... Ke3 {[%clk
0:00:19.7]} 46. Rf6 {[%clk 0:00:34.9]} 46... Rb3 {[%clk 0:00:19.5]} 47. h4
{[%clk 0:00:34]} 47... Rb1 {[%clk 0:00:18.4]} 48. g5 {[%clk 0:00:21]} 48... Rg1+
{[%clk 0:00:18.1]} 49. Kh2 {[%clk 0:00:19.7]} 49... Rf1 {[%clk 0:00:17.6]} 50.
Kg2 {[%clk 0:00:18.3]} 50... Rf2+ {[%clk 0:00:17.4]} 51. Kg3 {[%clk 0:00:18.9]}
51... Rf1 {[%clk 0:00:16.7]} 52. h5 {[%clk 0:00:14.3]} 52... Rg1+ {[%clk
0:00:16.1]} 53. Bg2 {[%clk 0:00:12.9]} 53... Bd5 {[%clk 0:00:12.2]} 54. Rf2
{[%clk 0:00:12.9]} 54... Rxg2+ {[%clk 0:00:11]} 55. Rxg2 {[%clk 0:00:13.8]}
55... Bxg2 {[%clk 0:00:11.3]} 56. Kxg2 {[%clk 0:00:13.9]} 56... Kf4 {[%clk
0:00:11.9]} 57. h6 {[%clk 0:00:14.5]} 1-0

[Event "Late-Titled-Tuesday-Blitz-April-16-2024"]
[Site "Chess.com"]
[Date "2024.04.16"]
[Round "2"]
[White "MikeSailer"]
[Black "SilverCityIndigo"]
[Result "1-0"]
[WhiteElo "2164"]
[BlackElo "2431"]
[TimeControl "180+1"]
[EndTime "14:18:29 PDT"]
[Termination "MikeSailer won by resignation"]

1. d4 {[%clk 0:03:00]} 1... d5 {[%clk 0:02:59.8]} 2. Nf3 {[%clk 0:02:55]} 2...
Nc6 {[%clk 0:02:59.6]} 3. Bf4 {[%clk 0:02:53.2]} 3... Bg4 {[%clk 0:02:59.5]} 4.
e3 {[%clk 0:02:52.9]} 4... e6 {[%clk 0:02:55.3]} 5. a3 {[%clk 0:02:42.7]} 5...
Bd6 {[%clk 0:02:55]} 6. Bd3 {[%clk 0:02:39.5]} 6... Nge7 {[%clk 0:02:53.4]} 7.
Bxd6 {[%clk 0:02:36.6]} 7... cxd6 {[%clk 0:02:52.9]} 8. O-O {[%clk 0:02:36.5]}
8... e5 {[%clk 0:02:52.8]} 9. Be2 {[%clk 0:02:34.6]} 9... e4 {[%clk 0:02:38.5]}
10. Nfd2 {[%clk 0:02:30.3]} 10... Bxe2 {[%clk 0:02:38.3]} 11. Qxe2 {[%clk
0:02:26.1]} 11... O-O {[%clk 0:02:22.8]} 12. c4 {[%clk 0:02:24.2]} 12... dxc4
{[%clk 0:02:16.9]} 13. Nxc4 {[%clk 0:02:24]} 13... d5 {[%clk 0:02:16.7]} 14.
Ncd2 {[%clk 0:02:22.1]} 14... f5 {[%clk 0:02:06.2]} 15. Nc3 {[%clk 0:02:22]}
15... Kh8 {[%clk 0:02:00.1]} 16. b4 {[%clk 0:02:21.8]} 16... a6 {[%clk
0:01:58.5]} 17. Nb3 {[%clk 0:02:21.7]} 17... f4 {[%clk 0:01:58.5]} 18. exf4
{[%clk 0:02:17.5]} 18... Rxf4 {[%clk 0:01:50.5]} 19. Nc5 {[%clk 0:02:17.1]}
19... Qd6 {[%clk 0:01:19.8]} 20. Nxb7 {[%clk 0:02:13.8]} 20... Qf6 {[%clk
0:01:18]} 21. Nc5 {[%clk 0:02:05.7]} 21... Nxd4 {[%clk 0:01:17.6]} 22. Qd2
{[%clk 0:01:49.9]} 22... Rg4 {[%clk 0:00:40]} 23. Kh1 {[%clk 0:01:30.2]} 23...
Nf3 {[%clk 0:00:27.6]} 24. Qe3 {[%clk 0:01:21]} 24... Rxg2 {[%clk 0:00:18.1]}
25. Kxg2 {[%clk 0:01:12.7]} 25... Nf5 {[%clk 0:00:04.6]} 26. Qf4 {[%clk
0:00:49.7]} 26... N5h4+ {[%clk 0:00:04.1]} 27. Kg3 {[%clk 0:00:50.1]} 27...
Qxf4+ {[%clk 0:00:02.4]} 28. Kxf4 {[%clk 0:00:49.8]} 28... Rf8+ {[%clk
0:00:02.8]} 29. Kg3 {[%clk 0:00:42.7]} 29... g5 {[%clk 0:00:01.8]} 30. Nxd5
{[%clk 0:00:39.6]} 30... h5 {[%clk 0:00:01.7]} 31. Nxe4 {[%clk 0:00:32]} 31...
Nd4 {[%clk 0:00:02.2]} 32. Nxg5 {[%clk 0:00:26.2]} 32... Nhf5+ {[%clk
0:00:01.6]} 33. Kg2 {[%clk 0:00:26.1]} 33... Rg8 {[%clk 0:00:02]} 34. f4 {[%clk
0:00:24.3]} 34... Nc2 {[%clk 0:00:02.4]} 35. Rac1 {[%clk 0:00:23.4]} 35... Nce3+
{[%clk 0:00:02.8]} 36. Kh1 {[%clk 0:00:24.1]} 36... Nxd5 {[%clk 0:00:02.9]} 37.
Rc6 {[%clk 0:00:23.2]} 37... Nxf4 {[%clk 0:00:02]} 38. Nf7+ {[%clk 0:00:11.4]}
38... Kh7 {[%clk 0:00:02]} 39. Rxf4 {[%clk 0:00:10.8]} 39... Ne3 {[%clk
0:00:02.3]} 40. Rf3 {[%clk 0:00:06.2]} 40... Nd1 {[%clk 0:00:02.5]} 41. Rh6+
{[%clk 0:00:06]} 41... Kg7 {[%clk 0:00:02.6]} 42. Rg3+ {[%clk 0:00:06.1]} 42...
Kxf7 {[%clk 0:00:03.2]} 43. Rxg8 {[%clk 0:00:06.4]} 43... Kxg8 {[%clk
0:00:04.1]} 44. Rxh5 {[%clk 0:00:06.7]} 44... Nc3 {[%clk 0:00:04.7]} 45. Ra5
{[%clk 0:00:06.4]} 45... Kf7 {[%clk 0:00:03.5]} 46. Rxa6 {[%clk 0:00:06.9]}
46... Nb1 {[%clk 0:00:03.8]} 47. b5 {[%clk 0:00:07.3]} 47... Nd2 {[%clk
0:00:04.7]} 48. b6 {[%clk 0:00:07.6]} 1-0

[Event "Late-Titled-Tuesday-Blitz-April-16-2024"]
[Site "Chess.com"]
[Date "2024.04.16"]
[Round "2"]
[White "GrigorGrigorov"]
[Black "djano"]
[Result "0-1"]
[WhiteElo "2911"]
[BlackElo "2614"]
[TimeControl "180+1"]
[EndTime "14:18:36 PDT"]
[Termination "djano won on time"]

1. d4 {[%clk 0:03:00.9]} 1... Nf6 {[%clk 0:02:59.5]} 2. Nf3 {[%clk 0:03:01.3]}
2... g6 {[%clk 0:02:59.5]} 3. Bg5 {[%clk 0:03:01.6]} 3... Bg7 {[%clk 0:02:58.9]}
4. Nbd2 {[%clk 0:03:02.1]} 4... d6 {[%clk 0:02:56.9]} 5. c3 {[%clk 0:03:01.5]}
5... h6 {[%clk 0:02:55.2]} 6. Bh4 {[%clk 0:03:00.9]} 6... Nbd7 {[%clk 0:02:55]}
7. e4 {[%clk 0:03:00.6]} 7... e5 {[%clk 0:02:53]} 8. dxe5 {[%clk 0:03:00.6]}
8... dxe5 {[%clk 0:02:53.1]} 9. Be2 {[%clk 0:03:01.1]} 9... O-O {[%clk
0:02:51.3]} 10. O-O {[%clk 0:03:01]} 10... g5 {[%clk 0:02:36.9]} 11. Bg3 {[%clk
0:03:00.3]} 11... Nh5 {[%clk 0:02:37.3]} 12. Qc2 {[%clk 0:02:57.7]} 12... Nf4
{[%clk 0:02:35.2]} 13. Nc4 {[%clk 0:02:57.1]} 13... Qf6 {[%clk 0:02:13.5]} 14.
Ne3 {[%clk 0:02:55.4]} 14... h5 {[%clk 0:02:01.6]} 15. h4 {[%clk 0:02:45.8]}
15... g4 {[%clk 0:01:59.6]} 16. Ng5 {[%clk 0:02:39.7]} 16... Nc5 {[%clk
0:01:54]} 17. Bc4 {[%clk 0:02:36]} 17... Be6 {[%clk 0:01:46.7]} 18. Nxe6 {[%clk
0:02:24.5]} 18... fxe6 {[%clk 0:01:47.6]} 19. b4 {[%clk 0:02:23.5]} 19... Nd7
{[%clk 0:01:42.5]} 20. Rad1 {[%clk 0:02:22.5]} 20... Nb6 {[%clk 0:01:41.9]} 21.
Bb3 {[%clk 0:02:22.3]} 21... Kh8 {[%clk 0:01:34]} 22. c4 {[%clk 0:02:18.1]}
22... Rf7 {[%clk 0:01:23.6]} 23. c5 {[%clk 0:02:17.5]} 23... Nc8 {[%clk
0:01:23.2]} 24. Rd2 {[%clk 0:02:10.9]} 24... Ne7 {[%clk 0:01:23.3]} 25. Rfd1
{[%clk 0:01:53.1]} 25... Nc6 {[%clk 0:01:23.2]} 26. Qc4 {[%clk 0:01:43.5]} 26...
Nd4 {[%clk 0:01:21.5]} 27. Nc2 {[%clk 0:01:43.3]} 27... Raf8 {[%clk 0:00:50.5]}
28. Nxd4 {[%clk 0:01:38.7]} 28... exd4 {[%clk 0:00:51.4]} 29. Rxd4 {[%clk
0:01:32.9]} 29... Qg6 {[%clk 0:00:30.6]} 30. Rd7 {[%clk 0:01:18.3]} 30... Be5
{[%clk 0:00:30.1]} 31. Rxf7 {[%clk 0:01:08.3]} 31... Rxf7 {[%clk 0:00:29.9]} 32.
Rd8+ {[%clk 0:00:52.6]} 32... Kg7 {[%clk 0:00:27.7]} 33. Rd1 {[%clk 0:00:34.9]}
33... Nh3+ {[%clk 0:00:20.6]} 34. gxh3 {[%clk 0:00:26]} 34... Bxg3 {[%clk
0:00:20.6]} 35. Qc3+ {[%clk 0:00:19.1]} 35... Kh7 {[%clk 0:00:14.1]} 36. Qxg3
{[%clk 0:00:18.3]} 36... Qxe4 {[%clk 0:00:12.7]} 37. hxg4 {[%clk 0:00:14.7]}
37... Rf3 {[%clk 0:00:10.1]} 38. Qg2 {[%clk 0:00:12.7]} 38... hxg4 {[%clk
0:00:10]} 39. Rf1 {[%clk 0:00:10.6]} 39... Qxb4 {[%clk 0:00:09.6]} 40. Bxe6
{[%clk 0:00:09.2]} 40... Rf4 {[%clk 0:00:08.2]} 41. Rd1 {[%clk 0:00:08.5]} 41...
Qxc5 {[%clk 0:00:07.9]} 42. Bd5 {[%clk 0:00:06.7]} 42... c6 {[%clk 0:00:07.6]}
43. Be4+ {[%clk 0:00:07]} 43... Kh6 {[%clk 0:00:07]} 44. Bb1 {[%clk 0:00:06.9]}
44... Kh5 {[%clk 0:00:06.1]} 45. Qg3 {[%clk 0:00:05.5]} 45... Rf3 {[%clk
0:00:05.6]} 46. Qg2 {[%clk 0:00:05.1]} 46... Rf4 {[%clk 0:00:06.1]} 47. Re1
{[%clk 0:00:04.7]} 47... g3 {[%clk 0:00:05.7]} 48. Re2 {[%clk 0:00:01.8]} 48...
gxf2+ {[%clk 0:00:05.3]} 49. Rxf2 {[%clk 0:00:01.7]} 49... Qc1+ {[%clk
0:00:05.5]} 50. Kh2 {[%clk 0:00:02]} 50... Rxh4+ {[%clk 0:00:05.2]} 51. Kg3
{[%clk 0:00:01.6]} 51... Rg4+ {[%clk 0:00:05.6]} 52. Kf3 {[%clk 0:00:01.7]}
52... Rxg2 {[%clk 0:00:06.5]} 53. Rxg2 {[%clk 0:00:01.8]} 53... Qc3+ {[%clk
0:00:06.6]} 0-1

[Event "Late-Titled-Tuesday-Blitz-April-16-2024"]
[Site "Chess.com"]
[Date "2024.04.16"]
[Round "2"]
[White "youngdinousaur"]
[Black "vova-79"]
[Result "0-1"]
[WhiteElo "2233"]
[BlackElo "2557"]
[TimeControl "180+1"]
[EndTime "14:18:38 PDT"]
[Termination "vova-79 won by resignation"]

1. d4 {[%clk 0:03:00.9]} 1... d5 {[%clk 0:02:56.9]} 2. Bf4 {[%clk 0:02:59.9]}
2... Nf6 {[%clk 0:02:56.2]} 3. e3 {[%clk 0:03:00.6]} 3... c5 {[%clk 0:02:55.6]}
4. c3 {[%clk 0:03:00.9]} 4... Nc6 {[%clk 0:02:55.1]} 5. Nf3 {[%clk 0:03:00.5]}
5... cxd4 {[%clk 0:02:52.1]} 6. exd4 {[%clk 0:03:00.2]} 6... Bg4 {[%clk
0:02:52]} 7. Nbd2 {[%clk 0:02:59.4]} 7... e6 {[%clk 0:02:51.8]} 8. Qb3 {[%clk
0:02:59.9]} 8... Bxf3 {[%clk 0:02:51.2]} 9. Nxf3 {[%clk 0:02:59.5]} 9... Qc8
{[%clk 0:02:33.5]} 10. Bd3 {[%clk 0:02:57.3]} 10... Be7 {[%clk 0:02:33]} 11. O-O
{[%clk 0:02:56.3]} 11... O-O {[%clk 0:02:33.6]} 12. Ne5 {[%clk 0:02:47.4]} 12...
Nxe5 {[%clk 0:02:30.6]} 13. Bxe5 {[%clk 0:02:48.3]} 13... Nd7 {[%clk 0:02:28.5]}
14. Bf4 {[%clk 0:02:47]} 14... Bd8 {[%clk 0:02:29]} 15. Rae1 {[%clk 0:02:35]}
15... Bc7 {[%clk 0:02:28.8]} 16. Bxc7 {[%clk 0:02:29.8]} 16... Qxc7 {[%clk
0:02:29.3]} 17. f4 {[%clk 0:02:30.5]} 17... g6 {[%clk 0:02:28.5]} 18. Qd1 {[%clk
0:02:26.4]} 18... Rab8 {[%clk 0:02:24.6]} 19. Qg4 {[%clk 0:02:22.2]} 19... Kg7
{[%clk 0:02:16.2]} 20. Qh4 {[%clk 0:02:21.8]} 20... Qd8 {[%clk 0:01:59.6]} 21.
Qh3 {[%clk 0:02:19.4]} 21... Re8 {[%clk 0:01:58.5]} 22. g4 {[%clk 0:02:18.7]}
22... b5 {[%clk 0:01:52.5]} 23. a3 {[%clk 0:02:17.9]} 23... a5 {[%clk
0:01:51.7]} 24. f5 {[%clk 0:02:03.4]} 24... exf5 {[%clk 0:01:48.1]} 25. gxf5
{[%clk 0:02:02.6]} 25... Rxe1 {[%clk 0:01:38]} 26. Rxe1 {[%clk 0:02:03.5]} 26...
b4 {[%clk 0:01:37.4]} 27. fxg6 {[%clk 0:02:01.3]} 27... hxg6 {[%clk 0:01:36.9]}
28. axb4 {[%clk 0:01:58.4]} 28... axb4 {[%clk 0:01:36]} 29. Qg2 {[%clk
0:01:55.8]} 29... bxc3 {[%clk 0:01:31.4]} 30. bxc3 {[%clk 0:01:56.7]} 30... Nf6
{[%clk 0:01:23.2]} 31. Rc1 {[%clk 0:01:22.5]} 31... Qc7 {[%clk 0:01:14.7]} 32.
c4 {[%clk 0:01:10.5]} 32... Qf4 {[%clk 0:01:09.3]} 33. Rf1 {[%clk 0:00:59.8]}
33... Qxd4+ {[%clk 0:01:08.1]} 34. Qf2 {[%clk 0:01:00.3]} 34... Qxf2+ {[%clk
0:00:52.2]} 35. Rxf2 {[%clk 0:01:01.2]} 35... Rb3 {[%clk 0:00:41]} 36. Rd2
{[%clk 0:00:59.2]} 36... dxc4 {[%clk 0:00:35.3]} 37. Bxc4 {[%clk 0:01:00.1]}
37... Rc3 {[%clk 0:00:34.6]} 38. Ba2 {[%clk 0:00:59.4]} 38... Ne4 {[%clk
0:00:31.8]} 39. Re2 {[%clk 0:00:53.4]} 39... Rc1+ {[%clk 0:00:29.6]} 40. Kg2
{[%clk 0:00:52.5]} 40... f5 {[%clk 0:00:24.4]} 41. Rb2 {[%clk 0:00:47.9]} 41...
Kh6 {[%clk 0:00:23.2]} 42. Bg8 {[%clk 0:00:42.4]} 42... Kg5 {[%clk 0:00:22.7]}
43. Bd5 {[%clk 0:00:38.3]} 43... Nf6 {[%clk 0:00:19.8]} 44. Bf3 {[%clk
0:00:38.6]} 44... Rc3 {[%clk 0:00:19.3]} 45. Ra2 {[%clk 0:00:32.8]} 45... Nd7
{[%clk 0:00:19.1]} 46. Be2 {[%clk 0:00:22.2]} 46... Nc5 {[%clk 0:00:18.3]} 47.
Rb2 {[%clk 0:00:20.5]} 47... Ne6 {[%clk 0:00:18.2]} 48. Kg1 {[%clk 0:00:14.6]}
48... Nf4 {[%clk 0:00:17.8]} 49. Bf1 {[%clk 0:00:15]} 49... Rc1 {[%clk
0:00:15.8]} 50. Rf2 {[%clk 0:00:13.3]} 50... Nh3+ {[%clk 0:00:14.6]} 51. Kg2
{[%clk 0:00:14]} 51... Nxf2 {[%clk 0:00:14.8]} 52. Kxf2 {[%clk 0:00:14.9]} 52...
Kf4 {[%clk 0:00:14.8]} 53. Bg2 {[%clk 0:00:14.4]} 53... g5 {[%clk 0:00:14.8]}
54. Bf1 {[%clk 0:00:14.2]} 54... Rc2+ {[%clk 0:00:14.7]} 55. Kg1 {[%clk
0:00:14.4]} 55... Ke3 {[%clk 0:00:15]} 56. Bg2 {[%clk 0:00:14.9]} 56... Rc1+
{[%clk 0:00:13.8]} 57. Bf1 {[%clk 0:00:14.5]} 57... f4 {[%clk 0:00:14.5]} 58.
Kg2 {[%clk 0:00:14.2]} 58... f3+ {[%clk 0:00:14.8]} 59. Kg1 {[%clk 0:00:14]}
59... g4 {[%clk 0:00:15.2]} 0-1